bitfinex-derivatives/quotes_SOLF0:USTF0_20250719
["timestamp","ask_amount","ask_price","bid_price","bid_amount"]
[1752939168431,3.21,176.65,176.64,3.12]
[1752939168631,3.21,176.65,176.63,152.47489489]
[1752939168832,3.21,176.64,176.63,155.59489489]
[1752939169838,8.8681,176.64,176.63,152.47489489]
[1752939170030,3.21,176.64,176.52,170.67040799]
[1752939170228,2.4200234,176.59,176.54,3.13]
[1752939170435,8.0800234,176.59,176.57,3.13]
[1752939170633,8.0800234,176.59,176.53,103.52]
[1752939170634,8.0800234,176.59,176.58,3.13]
[1752939171441,5.6601,176.58,176.56,3.13]
[1752939171640,2.4200234,176.59,176.54,3.13]
[1752939172132,2.4200234,176.59,176.56,5.6604]
[1752939172330,5.6596,176.6,176.57,3.13]
[1752939172529,2.4200234,176.63,176.57,3.13]
[1752939172736,5.6593,176.61,176.58,3.13]
[1752939172931,2.4200234,176.63,176.58,3.13]
[1752939173138,5.6596,176.6,176.58,3.13]
[1752939173344,2.4200234,176.61,176.54,2.4200234]
[1752939173543,2.4200234,176.61,176.57,3.13]
[1752939173743,5.6599,176.59,176.58,3.13]
[1752939174634,5.6602,176.58,176.56,3.13]
[1752939174834,5.6602,176.58,176.57,3.13]
[1752939175744,5.6599,176.59,176.57,3.13]
[1752939175944,5.6599,176.59,176.58,3.13]
[1752939176147,11.3157,176.65,176.47,3.13]
[1752939176447,2.4200234,176.57,176.54,3.13]
[1752939176834,8.0804234,176.57,176.54,3.13]
[1752939177136,2.4200234,176.59,176.54,3.13]
[1752939177338,2.4200234,176.55,176.51,3.13]
[1752939177533,2.4200234,176.53,176.48,3.13]
[1752939177938,5.6622,176.52,176.49,3.13]
[1752939178338,2.4200234,176.53,176.48,3.13]
[1752939178541,2.4200234,176.53,176.47,109.5035]
[1752939178742,2.4200234,176.53,176.49,3.13]
[1752939179045,2.4200234,176.51,176.48,3.13]
[1752939179246,2.4200234,176.51,176.49,3.13]
[1752939179740,2.4200234,176.51,176.47,3.13]
[1752939179945,2.4200234,176.49,176.47,3.13]
[1752939180144,2.4200234,176.49,176.4,2.4200234]
[1752939180345,2.4200234,176.49,176.41,3.13]
[1752939180547,5.6632,176.49,176.45,5.6641]
[1752939180739,2.4200234,176.5,176.42,2.4200234]
[1752939180941,2.4200234,176.5,176.43,3.13]
[1752939181348,2.4200234,176.46,176.41,3.13]
[1752939181551,2.4200234,176.44,176.37,3.13]
[1752939181748,2.4200234,176.45,176.41,3.13]
[1752939181943,11.3226,176.55,176.43,3.13]
[1752939182143,2.4200234,176.45,176.37,3.13]
[1752939182343,2.4200234,176.45,176.43,3.13]
[1752939182540,2.4200234,176.45,176.44,3.13]
[1752939182740,2.4200234,176.45,176.39,5.6661]
[1752939182944,2.4200234,176.43,176.4,3.13]
[1752939183444,2.4200234,176.49,176.36,104.2]
[1752939183445,2.4200234,176.44,176.37,3.13]
[1752939183942,2.4200234,176.46,176.37,3.13]
[1752939184245,2.4200234,176.4,176.36,5.6671]
[1752939184449,2.4200234,176.41,176.31,104.36]
[1752939184646,2.4200234,176.39,176.33,3.13]
[1752939184848,2.4200234,176.4,176.33,3.13]
[1752939185045,2.4200234,176.4,176.33,5.5500234]
[1752939185344,2.4200234,176.42,176.34,3.13]
[1752939185545,2.4200234,176.42,176.34,5.5500234]
[1752939185849,2.4200234,176.42,176.35,3.13]
[1752939186048,2.4200234,176.4,176.35,3.13]
[1752939186645,2.4200234,176.4,176.37,5.6667]
[1752939186843,2.4200234,176.4,176.35,3.13]
[1752939187241,2.4200234,176.38,176.36,3.13]
[1752939187849,5.6668,176.37,176.36,3.13]
[1752939188344,2.4200234,176.38,176.33,3.13]
[1752939188544,2.4200234,176.35,176.33,3.13]
[1752939188746,2.4200234,176.4,176.28,3.13]
[1752939188946,16.9915,176.47,176.29,2.4200234]
[1752939189146,2.4200234,176.38,176.37,3.13]
[1752939189848,2.4200234,176.38,176.34,3.13]
[1752939190051,2.4200234,176.35,176.34,3.13]
[1752939190251,2.4200234,176.35,176.29,3.13]
[1752939191250,5.6678,176.34,176.3,5.669]
[1752939191446,2.4200234,176.35,176.28,104.6]
[1752939191654,2.4200234,176.33,176.26,3.13]
[1752939191852,2.4200234,176.33,176.3,3.13]
[1752939192357,8.0881234,176.33,176.3,3.13]
[1752939192554,2.4200234,176.36,176.3,3.13]
[1752939192750,5.6675,176.35,176.3,3.16567183]
[1752939193059,2.4200234,176.34,176.3,3.16567183]
[1752939193358,2.4200234,176.32,176.3,3.16567183]
[1752939193957,5.6687,176.31,176.3,0.03567183]
[1752939194851,8.0885234,176.32,176.31,3.13]
[1752939195356,2.4200234,176.32,176.3,3.16567183]
[1752939195557,2.4200234,176.32,176.3,0.03567183]
[1752939195952,5.6687,176.31,176.3,0.03567183]
[1752939197156,2.4200234,176.32,176.31,3.13]
[1752939197958,16.99,176.46,176.31,3.13]
[1752939198159,2.4200234,176.38,176.31,3.13]
[1752939198455,2.4200234,176.42,176.34,3.13]
[1752939198653,2.4200234,176.42,176.4,3.13]
[1752939198855,2.4200234,176.47,176.39,2.4200234]
[1752939199159,2.4200234,176.45,176.39,3.13]
[1752939199953,5.6641,176.46,176.38,2.4200234]
[1752939200156,5.6641,176.46,176.42,3.13]
[1752939200348,5.6642,176.45,176.42,3.13]
[1752939200552,2.4200234,176.47,176.42,3.13]
[1752939201259,5.6644,176.45,176.41,5.6654]
[1752939201460,5.6644,176.45,176.44,3.33]
[1752939201655,2.4200234,176.47,176.4,2.4200234]
[1752939201859,2.4200234,176.47,176.43,3.33]
[1752939202556,5.6645,176.44,176.43,3.33]
[1752939202760,2.4200234,176.47,176.39,3.33]
[1752939203161,5.6641,176.46,176.43,3.33]
[1752939203654,5.6641,176.46,176.42,5.665]
[1752939203853,5.6641,176.46,176.31,2.4200234]
[1752939203854,5.6642,176.45,176.44,3.33]
[1752939204256,2.4200234,176.49,176.44,3.33]
[1752939204462,485.58,176.55,176.44,3.33]
[1752939204463,2.4200234,176.51,176.44,3.33]
[1752939204958,5.6632,176.49,176.45,5.664]
[1752939205158,2.4200234,176.51,176.46,3.33]
[1752939205555,381.02,176.55,176.45,3.33]
[1752939205761,2.4200234,176.52,176.45,3.33]
[1752939206166,2.4200234,176.54,176.45,3.33]
[1752939207064,5.6622,176.52,176.48,3.33]
[1752939207569,2.4200234,176.54,176.49,3.33]
[1752939208270,8.0814234,176.54,176.5,3.33]
[1752939208964,2.4200234,176.56,176.51,3.33]
[1752939209164,104.44,176.61,176.51,3.33]
[1752939209361,5.6604,176.58,176.53,5.6616]
[1752939209567,2.4200234,176.59,176.54,3.33]
[1752939210160,2.4200234,176.59,176.55,3.33]
[1752939210362,2.4200234,176.61,176.55,3.33]
[1752939210566,2.4200234,176.63,176.55,3.33]
[1752939210762,15.91005708,176.63,176.55,3.33]
[1752939211174,2.4200234,176.71,176.63,3.33]
[1752939211370,13.49085833,176.71,176.65,3.33]
[1752939211766,15.91088173,176.71,176.65,3.33]
[1752939212172,5.6571,176.68,176.65,3.33]
[1752939212467,15.91088173,176.71,176.64,3.33]
[1752939212667,2.4200234,176.68,176.55,380.84]
[1752939212872,16.32771352,176.66,176.57,2.4200234]
[1752939213071,17.85685681,176.66,176.56,7.27916669]
[1752939213373,5.6587,176.63,176.58,3.33]
[1752939213573,17.85685681,176.66,176.58,3.33]
[1752939214271,5.659,176.62,176.58,3.33]
[1752939214566,22.654,176.77,176.58,3.33]
[1752939214875,3.94916669,176.68,176.59,3.33]
[1752939215674,3.94916669,176.68,176.6,3.33]
[1752939216173,5.658,176.65,176.6,3.33]
[1752939217070,5.6575,176.66,176.61,3.33]
[1752939217372,3.94916669,176.68,176.61,3.33]
[1752939217572,5.658,176.65,176.61,3.33]
[1752939218378,3.94916669,176.71,176.63,3.33]
[1752939219873,11.3074,176.78,176.63,3.33]
[1752939220066,3.94916669,176.74,176.64,3.94916669]
[1752939220266,3.94916669,176.72,176.65,3.33]
[1752939220469,5.6568,176.69,176.65,3.33]
[1752939221471,3.94916669,176.7,176.61,3.33]
[1752939221871,5.6567,176.69,176.62,3.94916669]
[1752939222076,3.94916669,176.71,176.63,3.33]
[1752939222278,3.94916669,176.73,176.64,5.6581]
[1752939222476,5.6565,176.7,176.65,3.33]
[1752939222977,3.94916669,176.73,176.65,3.33]
[1752939223379,3.94916669,176.73,176.65,8.9878]
[1752939223579,3.94916669,176.73,176.66,3.33]
[1752939223773,5.6561,176.71,176.66,3.33]
[1752939224078,3.94916669,176.73,176.66,3.33]
[1752939225378,3.94916669,176.72,176.66,3.33]
[1752939225976,5.6565,176.7,176.66,3.33]
[1752939228076,5.6568,176.69,176.66,3.33]
[1752939228676,5.6569,176.68,176.66,3.33]
[1752939229382,3.94916669,176.72,176.66,3.33]
[1752939230481,5.6565,176.7,176.66,3.33]
[1752939230683,3.94916669,176.72,176.66,3.33]
[1752939230883,5.6565,176.7,176.66,3.33]
[1752939231582,5.6566,176.69,176.66,3.33]
[1752939234880,5.6569,176.68,176.66,3.33]
[1752939235076,3.94916669,176.72,176.66,3.33]
[1752939235077,2.42153395,176.72,176.66,3.33]
[1752939235689,5.657,176.68,176.66,3.33]
[1752939238386,2.42153395,176.68,176.6,3.04]
[1752939238591,2.42153395,176.63,176.61,3.04]
[1752939238790,5.6588,176.62,176.61,3.04]
[1752939239794,5.6585,176.63,176.61,3.04]
[1752939240390,2.42153395,176.65,176.6,3.04]
[1752939241487,2.42153395,176.61,176.58,3.04]
[1752939241690,2.42153395,176.61,176.59,3.04]
[1752939241893,5.6601,176.58,176.57,3.04]
[1752939242685,8.08133395,176.59,176.58,3.04]
[1752939243398,5.6604,176.57,176.56,3.04]
[1752939243997,5.6602,176.58,176.53,3.04]
[1752939244391,5.6604,176.57,176.54,5.6612]
[1752939244597,5.6604,176.57,176.55,3.04]
[1752939245098,5.6602,176.58,176.56,3.04]
[1752939245400,5.6602,176.58,176.57,3.04]
[1752939246491,2.42153395,176.6,176.57,3.04]
[1752939246698,2.42153395,176.62,176.57,3.04]
[1752939247696,5.6596,176.6,176.57,3.04]
[1752939248992,8.08073395,176.61,176.57,3.04]
[1752939249197,2.42153395,176.61,176.57,3.04]
[1752939249393,2.42153395,176.61,176.55,5.6609]
[1752939249598,2.42153395,176.61,176.56,3.04]
[1752939251002,5.6599,176.59,176.56,3.04]
[1752939252097,5.6595,176.6,176.56,3.04]
[1752939252601,5.6595,176.6,176.56,8.7007]
[1752939252802,5.6595,176.6,176.57,3.04]
[1752939253003,5.6597,176.59,176.57,3.04]
[1752939253503,5.6597,176.59,176.58,3.04]
[1752939253899,2.42153395,176.59,176.56,3.04]
[1752939254106,2.42153395,176.59,176.52,5.6617]
[1752939254299,2.42153395,176.59,176.56,3.04]
[1752939254500,5.6604,176.57,176.56,3.04]
[1752939255797,2.42153395,176.57,176.47,3.04]
[1752939256106,11.3176,176.62,176.45,4.64297522]
[1752939256107,2.42153395,176.54,176.49,3.04]
[1752939256604,5.6622,176.52,176.49,3.04]
[1752939257306,5.6623,176.51,176.5,3.04]
[1752939257699,2.42153395,176.52,176.45,3.04]
[1752939257900,2.42153395,176.52,176.48,3.04]
[1752939258099,2.42153395,176.52,176.44,3.04]
[1752939258498,5.663,176.49,176.46,3.04]
[1752939258903,5.6633,176.49,176.46,3.04]
[1752939259105,2.42153395,176.5,176.44,5.6645]
[1752939259308,2.42153395,176.48,176.39,5.46153395]
[1752939259506,2.42153395,176.48,176.39,2.42153395]
[1752939259701,2.42153395,176.48,176.4,3.04]
[1752939260099,5.664,176.46,176.41,5.6654]
[1752939260298,2.42153395,176.48,176.42,3.3]
[1752939260905,5.664,176.46,176.42,3.3]
[1752939261810,5.664,176.46,176.42,5.6652]
[1752939262011,5.6637,176.47,176.43,3.3]
[1752939262206,2.42153395,176.5,176.43,3.3]
[1752939262407,2.42153395,176.5,176.46,3.3]
[1752939263009,2.42153395,176.52,176.47,3.3]
[1752939263205,5.6624,176.51,176.47,3.3]
[1752939264106,5.6624,176.51,176.47,5.6636]
[1752939264312,5.6624,176.51,176.48,3.3]
[1752939264510,8.08353395,176.52,176.48,8.9632]
[1752939264709,2.42153395,176.52,176.46,3.3]
[1752939265816,5.6623,176.51,176.47,5.6634]
[1752939266009,5.6623,176.51,176.48,3.3]
[1752939266606,5.6623,176.51,176.5,3.3]
[1752939267209,5.662,176.52,176.5,3.3]
[1752939267414,5.662,176.52,176.51,3.3]
[1752939267611,2.42153395,176.53,176.46,3.3]
[1752939267909,5.6623,176.51,176.48,3.3]
[1752939268211,2.42153395,176.53,176.48,3.3]
[1752939268913,5.662,176.52,176.48,5.6632]
[1752939269113,5.662,176.52,176.49,3.3]
[1752939271612,2.42153395,176.53,176.49,3.3]
[1752939272608,5.662,176.52,176.49,3.3]
[1752939273511,5.6623,176.51,176.49,3.3]
[1752939273711,2.42153395,176.53,176.49,3.3]
[1752939274615,5.6622,176.52,176.49,3.3]
[1752939275617,5.6616,176.54,176.49,8.9629]
[1752939275816,5.6616,176.54,176.5,3.3]
[1752939276211,5.6617,176.53,176.5,3.3]
[1752939283721,2.42153395,176.55,176.5,3.3]
[1752939284418,2.42153395,176.53,176.43,3.3]
[1752939284727,2.42153395,176.53,176.45,3.3]
[1752939284925,2.42153395,176.53,176.44,106.42153395]
[1752939284926,5.6625,176.51,176.47,3.3]
[1752939285519,2.42153395,176.49,176.41,109.72153395]
[1752939285720,2.42153395,176.49,176.42,3.3]
[1752939285920,5.6638,176.47,176.42,5.6651]
[1752939286221,5.6638,176.47,176.43,3.3]
[1752939286621,5.6634,176.48,176.44,3.3]
[1752939287628,5.6634,176.48,176.45,3.3]
[1752939287828,2.42153395,176.51,176.45,3.3]
[1752939288329,5.6629,176.5,176.47,3.3]
[1752939288926,5.6629,176.5,176.48,3.3]
[1752939289122,5.6629,176.49,176.48,3.3]
[1752939290529,5.6627,176.5,176.48,3.3]
[1752939290729,2.42153395,176.51,176.5,3.31]
[1752939291833,2.42153395,176.54,176.5,3.31]
[1752939292128,2.42153395,176.55,176.5,3.31]
[1752939292725,8.08263395,176.55,176.51,3.31]
[1752939293126,2.42153395,176.55,176.51,3.31]
[1752939293331,8.08243395,176.56,176.52,3.31]
[1752939296722,5.6603,176.58,176.53,3.31]
[1752939297328,8.08133395,176.59,176.55,3.31]
[1752939297631,2.42153395,176.61,176.55,3.31]
[1752939297833,8.08073395,176.61,176.55,3.31]
[1752939298035,2.42153395,176.61,176.55,3.31]
[1752939299125,2.42153395,176.61,176.58,3.31]
[1752939299729,8.08063395,176.61,176.58,3.31]
[1752939300135,2.42153395,176.61,176.58,3.31]
[1752939300633,2.42153395,176.61,176.56,5.6606]
[1752939300634,5.6596,176.6,176.59,3.31]
[1752939302035,5.6598,176.59,176.55,5.6609]
[1752939302235,2.42153395,176.6,176.5,2.42153395]
[1752939302435,2.42153395,176.6,176.51,3.31]
[1752939302835,2.42153395,176.6,176.52,2.42153395]
[1752939303036,5.6603,176.58,176.54,5.6611]
[1752939303337,5.6603,176.58,176.55,3.31]
[1752939304140,5.6606,176.57,176.55,3.31]
[1752939305636,2.42153395,176.6,176.55,3.31]
[1752939305939,2.42153395,176.56,176.48,3.31]
[1752939306637,2.42153395,176.52,176.48,3.31]
[1752939306840,2.42153395,176.5,176.49,3.31]
[1752939307040,8.08423395,176.5,176.49,3.31]
[1752939312547,5.6635,176.48,176.45,3.31]
[1752939312746,2.42153395,176.5,176.45,3.31]
[1752939312944,2.42153395,176.5,176.45,5.664]
[1752939313144,2.42153395,176.5,176.46,3.31]
[1752939313346,2.42153395,176.48,176.44,3.31]
[1752939313538,5.6643,176.45,176.38,382.94153395]
[1752939313738,2.42153395,176.46,176.38,382.94153395]
[1752939313948,2.42153395,176.47,176.4,2.42153395]
[1752939314151,8.08513395,176.47,176.44,3.31]
[1752939314340,2.42153395,176.47,176.44,3.31]
[1752939314741,2.42153395,176.49,176.44,3.31]
[1752939314946,2.42153395,176.51,176.44,3.31]
[1752939315648,5.6632,176.49,176.46,3.31]
[1752939316840,2.42153395,176.51,176.46,3.31]
[1752939317040,6.35913173,176.57,176.46,3.31]
[1752939317240,2.42153395,176.53,176.46,3.31]
[1752939317444,5.6624,176.51,176.47,5.6634]
[1752939317645,5.6624,176.51,176.48,3.31]
[1752939318150,5.6627,176.5,176.49,3.31]
[1752939327055,5.6633,176.48,176.46,3.23]
[1752939327358,2.42153395,176.48,176.46,3.23]
[1752939327858,5.6638,176.47,176.44,5.6645]
[1752939328359,5.6638,176.47,176.43,5.6648]
[1752939328659,5.6638,176.47,176.44,3.23]
[1752939328859,2.42153395,176.48,176.44,3.23]
[1752939330161,5.6636,176.47,176.45,3.23]
[1752939332759,8.08493395,176.48,176.45,3.23]
[1752939332957,2.42153395,176.5,176.46,5.6637]
[1752939333162,2.42153395,176.5,176.47,3.23]
[1752939333764,5.6631,176.49,176.47,3.23]
[1752939335667,2.42153395,176.5,176.47,3.23]
[1752939336563,5.6631,176.49,176.47,3.23]
[1752939336769,2.42153395,176.5,176.47,3.23]
[1752939337564,5.6629,176.49,176.47,3.23]
[1752939337770,17.68023173,176.57,176.47,3.23]
[1752939337971,2.42153395,176.51,176.47,3.23]
[1752939338174,5.6626,176.5,176.48,3.23]
[1752939340374,5.6629,176.49,176.48,3.23]
[1752939341075,5.6626,176.5,176.48,3.23]
[1752939342375,2.42153395,176.53,176.5,3.23]
[1752939342766,5.6621,176.52,176.5,3.23]
[1752939346072,5.662,176.52,176.5,3.23]
[1752939347973,5.6623,176.51,176.5,3.23]
[1752939348171,8.08383395,176.51,176.5,3.23]
[1752939349479,2.42153395,176.51,176.5,3.23]
[1752939349874,5.662,176.52,176.5,3.23]
[1752939351381,8.08333395,176.53,176.5,3.23]
[1752939351883,5.662,176.52,176.5,3.23]
[1752939352477,2.42153395,176.51,176.44,4.7173551]
[1752939352685,2.42153395,176.51,176.44,103.88]
[1752939353081,8.08403395,176.51,176.45,3.16]
[1752939353586,8.08403395,176.51,176.47,5.6633]
[1752939353785,5.6627,176.5,176.48,3.16]
[1752939356586,5.6627,176.5,176.46,5.6638]
[1752939356786,5.6627,176.5,176.47,3.16]
[1752939357187,5.6627,176.5,176.48,3.16]
[1752939361583,2.42153395,176.51,176.49,3.16]
[1752939361788,2.42153395,176.53,176.49,3.16]
[1752939362183,5.6623,176.52,176.49,5.6629]
[1752939362388,2.42153395,176.53,176.5,3.16]
[1752939363484,2.42153395,176.53,176.51,3.16]
[1752939363485,8.08333395,176.53,176.51,3.16]
[1752939364390,2.42153395,176.58,176.51,3.16]
[1752939364587,2.42153395,176.58,176.51,5.58153395]
[1752939364889,113.53869759,176.64,176.52,2.42153395]
[1752939364890,2.42153395,176.6,176.52,2.42153395]
[1752939365090,2.42153395,176.6,176.53,3.16]
[1752939365485,2.42153395,176.6,176.57,3.16]
[1752939365988,5.6598,176.59,176.57,3.16]
[1752939366985,5.66,176.58,176.57,3.16]
[1752939375287,5.6609,176.56,176.55,3.16]
[1752939376192,5.6609,176.56,176.47,4.7173551]
[1752939376193,2.42153395,176.56,176.47,3.16]
[1752939376496,2.42153395,176.5,176.47,3.16]
[1752939377395,2.42153395,176.5,176.48,3.16]
[1752939378894,2.42153395,176.52,176.48,3.16]
[1752939379098,2.42153395,176.56,176.48,5.58153395]
[1752939379299,2.42153395,176.56,176.49,3.16]
[1752939379499,8.08243395,176.56,176.54,3.16]
[1752939379895,2.42153395,176.56,176.54,3.16]
[1752939381099,8.08233395,176.56,176.54,3.16]
[1752939383205,2.42153395,176.56,176.49,3.14]
[1752939384404,2.42153395,176.56,176.51,5.6621]
[1752939384605,2.42153395,176.56,176.52,3.14]
[1752939385808,5.6616,176.53,176.52,3.14]
[1752939386312,5.662,176.52,176.45,3.14]
[1752939386502,2.42153395,176.54,176.45,3.14]
[1752939386700,2.42153395,176.54,176.5,3.14]
[1752939386905,5.662,176.52,176.5,3.14]
[1752939390509,2.42153395,176.54,176.5,3.14]
[1752939390714,2.42153395,176.56,176.5,3.14]
[1752939390910,2.42153395,176.58,176.5,2.42153395]
[1752939391214,5.6604,176.57,176.54,3.14]
[1752939391410,390.25869759,176.65,176.54,3.14]
[1752939391411,2.42153395,176.6,176.54,3.14]
[1752939391807,2.42153395,176.6,176.55,5.6608]
[1752939392011,2.42153395,176.6,176.56,3.14]
[1752939392510,2.42153395,176.6,176.57,3.14]
[1752939392715,2.42153395,176.61,176.57,3.14]
[1752939393618,8.08073395,176.61,176.57,5.6602]
[1752939393919,8.08073395,176.61,176.58,3.14]
[1752939394115,5.6585,176.63,176.6,5.6594]
[1752939394316,5.6585,176.63,176.61,3.14]
[1752939395320,5.6582,176.64,176.61,3.14]
[1752939396814,5.6586,176.63,176.61,3.14]
[1752939397217,2.42153395,176.66,176.61,3.14]
[1752939397519,2.42153395,176.64,176.61,3.14]
[1752939398122,2.42153395,176.64,176.52,4.7173551]
[1752939398417,2.42153395,176.62,176.54,2.42153395]
[1752939398622,5.6593,176.61,176.57,5.6603]
[1752939398825,5.6593,176.61,176.58,3.14]
[1752939399623,2.42153395,176.62,176.58,3.14]
[1752939400522,2.42153395,176.62,176.56,5.6606]
[1752939400724,5.6593,176.61,176.57,5.6603]
[1752939400927,5.6593,176.61,176.58,3.14]
[1752939401818,2.42153395,176.64,176.58,3.14]
[1752939402023,2.42153395,176.66,176.59,3.14]
[1752939402629,5.6582,176.64,176.6,5.6592]
[1752939402831,5.6582,176.64,176.61,3.14]
[1752939407330,2.42153395,176.63,176.54,2.42153395]
[1752939407533,2.42153395,176.63,176.55,3.14]
[1752939407934,202.73677847,176.67,176.56,5.56153395]
[1752939408133,387.01913173,176.75,176.62,2.42153395]
[1752939408435,2.42153395,176.74,176.69,3.14]
[1752939408734,2.42153395,176.76,176.69,3.14]
[1752939408928,5.6559,176.71,176.69,3.14]
[1752939409128,2.42153395,176.74,176.69,3.14]
[1752939409525,5.6562,176.7,176.67,5.6571]
[1752939409727,103.76,176.78,176.59,16.0366551]
[1752939409728,2.42153395,176.72,176.64,2.42153395]
[1752939410035,5.6564,176.7,176.66,5.6575]
[1752939410229,2.42153395,176.72,176.64,2.42153395]
[1752939410430,2.42153395,176.7,176.66,3.08]
[1752939410735,2.42153395,176.7,176.67,3.08]
[1752939410934,2.42153395,176.68,176.63,3.08]
[1752939411137,2.42153395,176.68,176.64,3.08]
[1752939411138,5.6578,176.65,176.64,3.08]
[1752939411531,2.42153395,176.68,176.64,3.08]
[1752939412235,5.6577,176.66,176.64,3.08]
[1752939412934,5.6572,176.67,176.65,3.08]
[1752939413537,5.6569,176.68,176.65,5.6578]
[1752939413734,103.74,176.75,176.66,3.08]
[1752939413933,2.42153395,176.73,176.66,3.08]
[1752939414237,5.6567,176.69,176.66,3.08]
[1752939414636,5.6567,176.69,176.67,3.08]
[1752939414939,2.42153395,176.73,176.67,3.08]
[1752939415134,2.42153395,176.73,176.68,5.6568]
[1752939415338,2.42153395,176.73,176.69,3.08]
[1752939415834,5.6562,176.71,176.69,3.08]
[1752939416034,2.42153395,176.73,176.69,3.08]
[1752939416230,8.07693395,176.73,176.69,8.7365]
[1752939416533,5.6554,176.73,176.7,3.08]
[1752939417236,5.6554,176.73,176.7,5.6561]
[1752939417437,5.655,176.74,176.71,3.08]
[1752939417837,5.6556,176.72,176.71,3.08]
[1752939418742,5.6553,176.73,176.71,3.08]
[1752939418937,2.42153395,176.75,176.71,3.08]
[1752939419538,5.6551,176.74,176.71,3.08]
[1752939419735,2.42153395,176.75,176.71,3.08]
[1752939419937,5.6555,176.73,176.71,3.08]
[1752939420132,2.42153395,176.75,176.69,5.6564]
[1752939420337,2.42153395,176.73,176.7,3.08]
[1752939421242,2.42153395,176.71,176.68,3.08]
[1752939421437,2.42153395,176.69,176.61,2.42153395]
[1752939421632,2.42153395,176.7,176.65,3.08]
[1752939421835,2.42153395,176.74,176.66,3.08]
[1752939422234,5.6558,176.72,176.66,3.08]
[1752939422441,2.42153395,176.76,176.68,3.08]
[1752939423943,5.6551,176.74,176.67,2.42153395]
[1752939424137,2.42153395,176.76,176.71,3.08]
[1752939424843,106.12153395,176.78,176.74,3.08]
[1752939425343,194.42455987,176.79,176.74,3.08]
[1752939425646,2.42153395,176.78,176.74,3.08]
[1752939425948,5.6541,176.77,176.75,3.08]
[1752939428548,5.6543,176.76,176.75,3.08]
[1752939428952,5.6541,176.77,176.75,3.08]
[1752939431743,5.6543,176.76,176.75,3.08]
[1752939432557,196.84609382,176.79,176.75,3.08]
[1752939433756,5.6537,176.78,176.75,3.08]
[1752939433955,196.84609382,176.79,176.75,3.08]
[1752939434750,5.6542,176.77,176.75,3.08]
[1752939435954,5.6538,176.78,176.76,3.08]
[1752939436455,8.07503395,176.79,176.76,8.7341]
[1752939436651,8.07503395,176.79,176.77,3.08]
[1752939438158,5.6535,176.79,176.76,5.6541]
[1752939438355,5.6535,176.79,176.78,3.08]
[1752939439254,8.07503395,176.79,176.78,3.08]
[1752939442255,380.5,176.85,176.78,3.08]
[1752939442460,2.42153395,176.83,176.78,3.08]
[1752939442859,2.42153395,176.84,176.78,3.08]
[1752939443064,2.42153395,176.86,176.79,3.17]
[1752939443266,2.42153395,176.88,176.79,3.17]
[1752939443466,5.6513,176.86,176.83,5.652]
[1752939443760,5.6513,176.86,176.84,3.17]
[1752939445266,5.6509,176.87,176.84,8.8216]
[1752939445468,5.6509,176.87,176.85,3.17]
[1752939446466,5.6511,176.86,176.85,3.17]
[1752939446961,5.6511,176.86,176.73,16.0272551]
[1752939446962,5.6519,176.84,176.81,5.6524]
[1752939447265,2.42153395,176.86,176.82,3.17]
[1752939447563,2.42153395,176.86,176.77,2.42153395]
[1752939447564,8.07283395,176.86,176.83,3.17]
[1752939447770,2.42153395,176.86,176.83,3.17]